bitfinex/quotes_SOLUSD_20240615
["timestamp","ask_amount","ask_price","bid_price","bid_amount"]
[1718440533013,5.66,144.28,144.24,0.51]
[1718440534102,23.0776,144.3,144.24,0.51]
[1718440534406,5.66,144.28,144.24,0.51]
[1718440534917,5.66,144.27,144.24,0.51]
[1718440535294,2.5644,144.29,144.24,0.51]
[1718440535614,5.66,144.27,144.24,0.51]
[1718440536708,7.6925,144.3,144.24,0.51]
[1718440536897,5.66,144.28,144.24,0.51]
[1718440538023,5.66,144.27,144.24,0.51]
[1718440538641,5.66,144.27,144.22,20.0]
[1718440538642,5.66,144.26,144.22,20.0]
[1718440538821,5.66,144.26,144.23,0.17]
[1718440539143,5.66,144.26,144.22,20.0]
[1718440539320,5.66,144.25,144.21,16.1261]
[1718440540539,5.66,144.25,144.22,0.85822929]
[1718440540852,5.66,144.27,144.23,0.17]
[1718440541138,5.66,144.27,144.22,0.68]
[1718440541319,5.66,144.26,144.22,0.68]
[1718440542930,23.0786,144.29,144.22,0.68]
[1718440543126,5.66,144.26,144.22,0.68]
[1718440543312,2.5643,144.29,144.22,0.68]
[1718440543520,5.66,144.27,144.22,20.68]
[1718440543937,2.5641,144.3,144.22,26.34]
[1718440544254,5.66,144.28,144.22,26.34]
[1718440544936,5.66,144.28,144.23,5.66]
[1718440545123,5.66,144.28,144.24,0.51]
[1718440545740,8.2244,144.28,144.24,0.17]
[1718440545916,5.66,144.26,144.22,20.17]
[1718440546117,5.66,144.26,144.23,0.17]
[1718440547510,5.66,144.25,144.23,0.17]
[1718440547750,5.66,144.25,144.22,0.17]
[1718440547915,5.66,144.25,144.21,16.4661]
[1718440550915,7.6939,144.27,144.21,16.1261]
[1718440550916,5.66,144.24,144.21,16.1261]
[1718440557119,7.21665027,144.32,144.22,100.17]
[1718440557326,5.66,144.3,144.24,5.83]
[1718440557545,5.66,144.3,144.25,0.17]
[1718440558853,5.66,144.29,144.24,0.34]
[1718440560153,2.5639,144.31,144.24,0.34]
[1718440560329,5.66,144.29,144.24,0.34]
[1718440562241,5.66,144.3,144.24,0.34]
[1718440562543,7.6908,144.33,144.26,0.17]
[1718440562753,5.66,144.31,144.26,0.34]
[1718440562953,5.66,144.31,144.27,0.34]
[1718440563669,7.6918,144.31,144.26,15.289]
[1718440563945,15.3835,144.31,144.26,15.119]
[1718440564154,5.66,144.29,144.26,15.119]
[1718440565673,12.8206,144.3,144.23,35.119]
[1718440565832,5.66,144.27,144.24,0.17]
[1718440566538,5.66,144.28,144.24,0.17]
[1718440567353,2.5639,144.31,144.24,0.34]
[1718440567550,5.66,144.28,144.24,0.17]
[1718440567760,5.66,144.28,144.24,0.51]
[1718440567956,25.6382,144.32,144.24,0.51]
[1718440568159,5.66,144.28,144.24,0.51]
[1718440568858,5.66,144.29,144.24,0.51]
[1718440570239,38.7986,144.34,144.23,35.119]
[1718440570461,5.66,144.25,144.19,15.119]
[1718440570667,5.66,144.24,144.19,15.119]
[1718440571664,5.66,144.25,144.19,20.779]
[1718440571963,5.66,144.26,144.21,0.17]
[1718440572743,5.66,144.25,144.21,0.17]
[1718440572942,5.66,144.25,144.2,20.0]
[1718440573670,5.66,144.24,144.2,20.0]
[1718440578467,5.66,144.25,144.21,0.51]
[1718440578858,5.66,144.24,144.21,0.51]
[1718440579684,5.66,144.24,144.21,0.17]
[1718440579986,5.66,144.25,144.21,0.34]
[1718440585765,5.66,144.23,144.21,0.34]
[1718440585971,5.66,144.24,144.21,0.34]
[1718440591897,5.66,144.25,144.21,0.34]
[1718440595768,2.5646,144.27,144.21,0.34]
[1718440596074,5.66,144.25,144.21,0.34]
[1718440598905,7.22891704,144.32,144.23,105.83]
[1718440599062,5.66,144.3,144.24,26.17]
[1718440599377,5.66,144.3,144.25,0.17]
[1718440602280,25.6365,144.33,144.25,0.17]
[1718440602491,5.66,144.3,144.25,0.17]
[1718440603280,7.22736083,144.36,144.25,0.17]
[1718440603281,14.8998083,144.35,144.25,105.83]
[1718440603579,5.66,144.31,144.26,20.51]
[1718440606289,30.3303,144.34,144.26,20.51]
[1718440606501,5.66,144.31,144.26,20.51]
[1718440607398,30.3303,144.34,144.26,20.51]
[1718440607706,5.66,144.32,144.26,26.17]
[1718440610504,7.6903,144.34,144.27,15.6842]
[1718440610690,5.66,144.32,144.27,15.6842]
[1718440612510,2.5635,144.34,144.27,15.6842]
[1718440612727,7.6903,144.34,144.27,15.6842]
[1718440613036,0.8570083,144.35,144.28,0.17]
[1718440613188,5.66,144.34,144.28,26.34]
[1718440614120,5.66,144.34,144.29,0.79460149]
[1718440617506,5.66,144.34,144.28,20.51]
[1718440617703,5.66,144.32,144.28,20.51]
[1718440618422,5.66,144.33,144.28,20.51]
[1718440620798,8.2235,144.33,144.28,20.17]
[1718440621010,5.66,144.33,144.28,20.0]
[1718440621210,8.5468083,144.35,144.28,20.0]
[1718440621405,5.66,144.32,144.28,20.0]
[1718440622112,3.4202083,144.35,144.28,20.0]
[1718440622314,5.66,144.33,144.28,20.0]
[1718440625604,5.66,144.32,144.28,20.0]
[1718440626126,3.4203083,144.35,144.28,20.0]
[1718440626299,5.66,144.32,144.28,20.0]
[1718440627760,0.8570083,144.35,144.28,20.0]
[1718440627923,5.66,144.34,144.29,6.17]
[1718440628730,5.66,144.34,144.29,0.51]
[1718440630851,0.8570083,144.35,144.29,0.51]
[1718440631053,5.66,144.34,144.29,0.51]
[1718440632253,5.66,144.34,144.29,0.34]
[1718440632557,5.66,144.33,144.28,20.0]
[1718440633757,5.66,144.32,144.28,20.0]
[1718440634129,7.6904,144.34,144.28,20.0]
[1718440634334,5.66,144.32,144.28,20.0]
[1718440636761,5.66,144.33,144.28,20.0]
[1718440637138,3.4203083,144.35,144.28,20.0]
[1718440637347,5.66,144.33,144.28,20.0]
[1718440639351,0.8570083,144.35,144.28,20.0]
[1718440639539,5.66,144.34,144.28,25.66]
[1718440640051,0.8570083,144.35,144.29,0.34]
[1718440640243,5.66,144.34,144.29,0.34]
[1718440640754,5.66,144.34,144.29,6.0]
[1718440643039,5.66,144.34,144.3,16.5657]
[1718440643243,0.8570083,144.35,144.31,6.17]
[1718440648969,0.8570083,144.35,144.32,6.6634]
[1718440658767,0.8570083,144.35,144.33,0.94547322]
[1718440659472,0.8570083,144.35,144.32,6.6634]
[1718440663558,3.4202083,144.35,144.3,16.5657]
[1718440663772,5.66,144.34,144.3,16.5657]
[1718440666670,0.8570083,144.35,144.3,16.5657]
[1718440666875,5.66,144.34,144.3,16.5657]
[1718440667483,0.8570083,144.35,144.26,23.9243896]
[1718440667484,5.66,144.32,144.26,34.24930589]
[1718440667682,5.66,144.31,144.27,20.0]
[1718440668497,5.66,144.32,144.27,20.0]
[1718440669002,5.66,144.32,144.27,25.66]
[1718440669288,5.66,144.32,144.28,0.51]
[1718440671771,5.66,144.32,144.28,0.17]
[1718440671968,5.66,144.3,144.27,20.0]
[1718440672176,0.8570083,144.35,144.26,115.807]
[1718440672371,5.66,144.33,144.27,20.0]
[1718440672574,5.66,144.33,144.27,25.66]
[1718440673178,5.66,144.33,144.28,0.68]
[1718440673597,5.66,144.33,144.28,0.34]
[1718440673900,3.4202083,144.35,144.27,20.0]
[1718440673901,5.66,144.32,144.27,20.0]
[1718440674283,5.66,144.33,144.27,25.66]
[1718440674491,5.66,144.34,144.28,6.17]
[1718440674789,5.66,144.34,144.28,0.51]
[1718440675096,5.66,144.34,144.28,6.17]
[1718440675671,5.66,144.33,144.28,0.51]
[1718440679889,5.66,144.32,144.28,0.51]
[1718440680094,5.66,144.33,144.28,0.51]
[1718440680295,3.4202083,144.35,144.28,0.51]
[1718440680609,5.66,144.33,144.28,0.51]
[1718440684102,2.5637,144.32,144.26,15.807]
[1718440684314,7.6925,144.3,144.24,6.0161]
[1718440684482,5.66,144.28,144.24,6.0161]
[1718440684805,5.66,144.29,144.24,6.0161]
[1718440685601,5.66,144.3,144.24,6.0161]
[1718440685902,5.66,144.3,144.24,11.6761]
[1718440686208,5.66,144.3,144.25,0.17]
[1718440687200,5.66,144.3,144.24,6.0161]
[1718440687405,2.5645,144.28,144.22,15.48]
[1718440687704,5.66,144.26,144.22,15.48]
[1718440688615,5.66,144.27,144.22,15.48]
[1718440689581,5.66,144.26,144.22,15.48]
[1718440690992,5.66,144.25,144.22,15.48]
[1718440695283,5.66,144.25,144.19,21.9329]
[1718440695485,31.307,144.27,144.19,21.9329]
[1718440695797,5.66,144.23,144.19,21.9329]
[1718440701217,5.66,144.21,144.19,15.48]
[1718440702618,25.6506,144.25,144.19,15.48]
[1718440702619,5.66,144.22,144.19,15.48]
[1718440710139,5.66,144.21,144.16,6.225]
[1718440710343,5.66,144.21,144.17,20.51]
[1718440710642,5.66,144.21,144.17,20.0]
[1718440711237,5.66,144.2,144.17,20.0]
[1718440711644,5.66,144.2,144.16,6.225]
[1718440713452,5.66,144.21,144.16,6.225]
[1718440713616,18.637,144.26,144.17,6.0]
[1718440713818,5.66,144.23,144.18,20.0]
[1718440714455,5.66,144.23,144.17,20.34]
[1718440714750,5.66,144.22,144.17,20.34]
[1718440716048,5.66,144.21,144.17,20.0]
[1718440716229,5.66,144.2,144.15,15.8777]
[1718440716428,5.66,144.19,144.15,15.8777]
[1718440717152,5.66,144.18,144.15,15.8777]
[1718440717642,5.66,144.19,144.15,15.8777]
[1718440719541,2.5657,144.21,144.15,15.8777]
[1718440719542,5.66,144.18,144.15,15.8777]
[1718440719847,5.66,144.18,144.12,11.885]
[1718440720050,5.66,144.18,144.13,20.17]
[1718440725441,8.2259,144.2,144.13,20.17]
[1718440725642,5.66,144.17,144.13,20.17]
[1718440726238,5.66,144.17,144.13,20.0]
[1718440729244,5.66,144.18,144.13,25.66]
[1718440729448,5.66,144.18,144.14,0.17]
[1718440730457,5.66,144.18,144.14,0.34]
[1718440730763,7.22620905,144.24,144.16,21.5927]
[1718440730948,5.66,144.22,144.17,6.17]
[1718440731139,5.66,144.23,144.17,6.17]
[1718440732648,5.66,144.22,144.17,0.51]
[1718440733036,5.66,144.21,144.17,0.51]
[1718440733249,5.66,144.21,144.16,15.7627]
[1718440734044,5.66,144.22,144.17,0.34]
[1718440735686,5.66,144.21,144.16,15.7627]
[1718440737273,71.24958102,144.27,144.17,12.0447]
[1718440737554,71.24958102,144.27,144.18,26.17]
[1718440737555,5.66,144.24,144.18,26.17]
[1718440737759,5.66,144.24,144.18,20.51]
[1718440738060,5.66,144.24,144.18,26.17]
[1718440738359,7.6936,144.28,144.19,15.9327]
[1718440738555,5.66,144.26,144.2,6.17]
[1718440738743,5.66,144.26,144.21,1.29879273]
[1718440738945,5.66,144.26,144.22,0.17]
[1718440739152,5.66,144.29,144.23,5.66]
[1718440739648,5.66,144.29,144.24,20.0]
[1718440740175,5.66,144.3,144.25,0.17]
[1718440740758,45.7109,144.34,144.25,0.34]
[1718440740963,23.0709,144.34,144.26,6.0]
[1718440741162,5.66,144.33,144.27,5.83]
[1718440741349,8.2235,144.33,144.27,5.83]
[1718440741542,5.66,144.33,144.27,5.83]
[1718440743153,3.4202083,144.35,144.28,32.3402]
[1718440743357,5.66,144.33,144.28,12.1702]
[1718440743555,5.66,144.34,144.28,12.1702]
[1718440743759,3.4202083,144.35,144.29,0.17]
[1718440744085,5.66,144.34,144.29,0.34]
[1718440744255,8.2234,144.34,144.29,0.34]
[1718440744454,5.66,144.32,144.28,6.3402]
[1718440744766,5.66,144.31,144.28,6.3402]
[1718440745377,5.66,144.31,144.26,0.17]
[1718440745673,15.9136,144.34,144.25,26.3402]
[1718440745674,5.1275,144.32,144.25,26.3402]
[1718440745848,2.564,144.31,144.25,26.3402]
[1718440746053,5.66,144.29,144.25,6.3402]
[1718440746369,5.66,144.34,144.24,15.7627]
[1718440746668,5.66,144.29,144.24,15.7627]
[1718440746852,5.66,144.28,144.24,15.7627]
[1718440747169,5.66,144.29,144.24,15.7627]
[1718440747552,5.66,144.29,144.25,0.17]
[1718440747851,5.66,144.3,144.25,0.17]
[1718440748242,12.8187,144.32,144.22,6.3402]
[1718440748243,100.0,144.32,144.22,6.3402]
[1718440748446,25.6453,144.28,144.2,16.4323]
[1718440748646,5.66,144.25,144.2,16.4323]
[1718440748844,0.27200307,144.24,144.2,16.4323]
[1718440749472,0.27200307,144.24,144.2,22.0923]
[1718440749659,0.27200307,144.24,144.21,0.79518658]
[1718440750176,0.27200307,144.24,144.2,22.0923]
[1718440750363,5.93200307,144.24,144.2,16.4323]
[1718440750562,5.66,144.23,144.2,16.4323]
[1718440751855,5.66,144.23,144.18,6.3402]
[1718440752659,5.1301,144.25,144.17,16.6023]
[1718440752862,5.66,144.21,144.17,16.6023]
[1718440753081,5.66,144.2,144.17,16.4323]
[1718440753388,5.66,144.2,144.14,6.3402]
[1718440753593,5.66,144.19,144.14,6.3402]
[1718440757189,5.66,144.19,144.15,0.50445699]
[1718440757369,5.66,144.2,144.15,0.50445699]
[1718440757788,5.66,144.19,144.15,0.50445699]
[1718440757981,5.66,144.2,144.15,0.50445699]
[1718440759274,5.66,144.19,144.15,0.50445699]
[1718440763174,5.1305,144.24,144.14,12.0002]
[1718440763383,2.5651,144.24,144.16,5.66]
[1718440763567,2.5651,144.24,144.17,20.17]
[1718440763568,5.66,144.22,144.17,20.17]
[1718440763967,23.0856,144.25,144.17,20.17]
[1718440764181,5.66,144.22,144.17,20.17]
[1718440765279,2.5651,144.24,144.17,20.0]
[1718440765280,5.66,144.21,144.17,20.0]
[1718440765487,5.66,144.21,144.16,20.0]
[1718440765671,5.66,144.2,144.16,20.0]
[1718440765870,5.66,144.2,144.15,20.34]
[1718440766086,5.66,144.2,144.15,20.0]
[1718440766296,5.66,144.19,144.15,20.0]
[1718440766766,5.66,144.19,144.14,6.5102]
[1718440767372,26.8176,144.24,144.14,12.1702]
[1718440767698,5.66,144.2,144.15,20.51]
[1718440767880,5.66,144.21,144.15,26.17]
[1718440768081,5.66,144.22,144.16,5.66]
[1718440768286,5.66,144.22,144.15,20.51]
[1718440768593,2.5653,144.24,144.16,5.66]
[1718440768772,5.66,144.22,144.17,0.51]
[1718440769474,14.91953629,144.26,144.17,26.17]
[1718440769671,14.91953629,144.26,144.19,15.841]
[1718440769672,5.66,144.24,144.19,15.841]
[1718440771677,5.66,144.23,144.19,15.841]
[1718440771880,5.66,144.22,144.19,15.841]
[1718440772493,5.66,144.22,144.17,20.0]
[1718440772679,5.66,144.21,144.17,20.0]
[1718440777921,5.66,144.21,144.17,0.39666369]
[1718440779340,2.5651,144.25,144.16,15.841]
[1718440779508,5.66,144.22,144.17,0.17]
[1718440782527,5.66,144.22,144.17,0.34]
[1718440782702,5.66,144.22,144.17,0.51]
[1718440789150,5.66,144.22,144.17,20.51]
[1718440790034,5.13,144.25,144.17,20.51]
[1718440790239,5.66,144.23,144.17,20.51]
[1718440790414,5.66,144.23,144.17,26.17]
[1718440790616,2.565,144.25,144.17,26.17]
[1718440790915,5.66,144.23,144.17,26.17]
[1718440792217,5.66,144.24,144.19,6.4783]
[1718440792417,5.66,144.25,144.2,0.17]
[1718440792617,5.66,144.25,144.2,0.51]
[1718440793718,23.079,144.29,144.21,21.3462]
[1718440793961,5.66,144.27,144.22,20.0]
[1718440797946,2.5643,144.29,144.22,25.66]
[1718440798237,7.6925,144.3,144.22,25.66]
[1718440798412,5.66,144.29,144.23,5.83]
[1718440798615,7.21521698,144.34,144.25,100.17]
[1718440798815,7.21521698,144.34,144.28,5.66]
[1718440799033,16.2363083,144.35,144.29,0.17]
[1718440799239,5.66,144.33,144.29,0.17]
[1718440800239,0.8570083,144.35,144.28,5.66]
[1718440800414,5.9834083,144.35,144.28,5.66]
[1718440800620,5.66,144.33,144.27,0.34]
[1718440800937,5.1276,144.32,144.26,20.0]
[1718440801150,5.1276,144.32,144.24,27.8245]
[1718440801151,5.66,144.29,144.24,27.8245]
[1718440801347,2.5636,144.33,144.25,0.51]
[1718440801662,5.66,144.32,144.26,5.66]
[1718440801824,5.66,144.32,144.25,0.51]
[1718440801825,5.66,144.31,144.25,6.17]
[1718440802019,5.66,144.3,144.25,6.17]
[1718440802651,7.6912,144.32,144.25,0.51]
[1718440802825,5.66,144.29,144.25,20.51]
[1718440803146,5.66,144.31,144.25,26.17]
[1718440803526,7.6908,144.33,144.25,26.17]
[1718440803527,5.66,144.3,144.25,20.51]
[1718440804135,5.66,144.31,144.25,26.17]
[1718440805633,5.66,144.3,144.25,20.51]
[1718440806018,5.66,144.29,144.25,20.51]
[1718440806743,5.66,144.3,144.25,26.17]
[1718440806949,5.66,144.3,144.25,20.51]
[1718440808639,2.5634,144.34,144.26,5.83]
[1718440808842,5.66,144.32,144.27,20.17]
[1718440809950,5.66,144.31,144.27,0.17]
[1718440810158,5.66,144.31,144.27,20.34]
[1718440810362,5.66,144.32,144.27,20.34]
[1718440810538,8.5468083,144.35,144.27,20.34]
[1718440810734,5.66,144.32,144.27,20.34]
[1718440810935,5.66,144.32,144.27,26.0]
[1718440811737,5.66,144.31,144.27,20.34]
[1718440811937,2.5635,144.33,144.27,20.34]
[1718440812154,5.66,144.31,144.27,20.34]
[1718440812827,5.66,144.31,144.27,20.17]
[1718440813160,2.5634,144.34,144.27,20.0]
[1718440813342,5.66,144.31,144.27,20.0]
[1718440814246,7.6901,144.34,144.27,20.0]
[1718440814444,5.66,144.31,144.27,20.0]
[1718440816044,5.66,144.31,144.28,0.17]
[1718440816244,5.66,144.32,144.28,0.17]
[1718440817260,7.6902,144.34,144.24,42.9745]
[1718440817261,5.66,144.29,144.24,22.1645]
[1718440817461,5.66,144.28,144.24,22.1645]
[1718440824247,5.66,144.25,144.2,22.6322]
[1718440824450,5.66,144.24,144.2,22.6322]
[1718440824644,5.66,144.23,144.2,22.6322]
[1718440824845,7.6944,144.26,144.2,16.0483]
[1718440824846,2.565,144.25,144.2,16.0483]
[1718440825047,5.66,144.22,144.2,16.0483]
[1718440826046,30.3342,144.27,144.2,16.0483]
[1718440826250,2.5647,144.27,144.2,16.0483]
[1718440826545,5.66,144.24,144.2,16.0483]
[1718440827053,5.66,144.24,144.2,16.79110554]
[1718440827451,5.66,144.24,144.2,16.0483]
[1718440827650,5.66,144.23,144.2,16.0483]
[1718440830974,5.66,144.22,144.2,16.0483]
[1718440833590,5.66,144.21,144.17,16.0483]
[1718440833753,5.66,144.19,144.17,16.0483]
[1718440833954,5.66,144.2,144.17,16.0483]
[1718440834166,5.66,144.2,144.17,17.43534238]
[1718440834763,26.4998,144.26,144.18,1.38694617]
[1718440834966,26.4998,144.26,144.17,16.0483]
[1718440834967,5.66,144.23,144.19,0.17]
[1718440835163,5.66,144.23,144.17,16.2183]
[1718440835164,5.66,144.23,144.18,0.51]
[1718440835375,5.66,144.23,144.18,0.17]
[1718440836071,25.6483,144.26,144.18,0.51]
[1718440836268,5.66,144.23,144.18,0.51]
[1718440844382,22.64,144.27,144.19,0.17]
[1718440844567,13.26197952,144.29,144.19,5.83]
[1718440844568,7.6934,144.28,144.19,5.83]
[1718440844773,5.66,144.25,144.2,20.51]
[1718440844962,15.3867,144.28,144.2,20.51]
[1718440845163,5.66,144.25,144.2,20.51]
[1718440847088,5.66,144.26,144.2,26.17]
[1718440847668,5.66,144.25,144.2,20.51]
[1718440860601,7.21207952,144.29,144.22,5.66]
[1718440860773,5.66,144.28,144.23,20.68]
[1718440862902,2.5638,144.32,144.23,20.68]
[1718440863093,5.66,144.28,144.23,20.68]
[1718440864698,5.66,144.28,144.23,20.51]
[1718440865315,25.6378,144.32,144.23,20.51]
[1718440865478,5.66,144.28,144.23,20.51]
[1718440865878,5.66,144.29,144.23,20.51]
[1718440866079,5.66,144.28,144.23,20.51]
[1718440870506,5.66,144.28,144.22,5.66]
[1718440870507,5.66,144.26,144.21,21.9692]
[1718440870680,5.66,144.26,144.22,20.0]
[1718440871594,0.17,144.32,144.21,21.9692]
[1718440871595,5.66,144.25,144.21,21.9692]
[1718440871790,5.66,144.24,144.21,21.9692]
[1718440871987,5.66,144.25,144.21,21.9692]
[1718440872181,5.66,144.26,144.21,21.9692]
[1718440878122,5.66,144.25,144.21,21.9692]
[1718440878619,2.5644,144.28,144.21,21.9692]
[1718440878620,5.66,144.24,144.21,21.9692]
[1718440879908,5.66,144.25,144.21,21.9692]
[1718440882418,5.1283,144.3,144.21,21.9692]
[1718440882626,5.66,144.26,144.21,21.9692]
[1718440882827,2.5642,144.3,144.21,21.9692]
[1718440883037,5.66,144.26,144.21,21.9692]
[1718440883235,7.6923,144.3,144.21,27.6292]
[1718440883538,5.66,144.27,144.21,27.6292]
[1718440883745,5.66,144.26,144.21,21.9692]
[1718440885532,5.66,144.24,144.21,21.9692]
[1718440885739,5.1296,144.26,144.18,16.2197]
[1718440885740,5.66,144.23,144.18,16.2197]
[1718440885945,5.66,144.22,144.18,16.2197]
[1718440894761,5.66,144.21,144.18,16.2197]
[1718440898380,5.66,144.2,144.18,16.2197]
[1718440898893,5.66,144.21,144.18,16.2197]
[1718440909768,2.5651,144.24,144.18,16.2197]
[1718440909972,5.66,144.21,144.18,16.2197]
[1718440912263,5.66,144.21,144.15,8.58581796]
[1718440912582,5.66,144.19,144.14,16.5838]
[1718440912786,5.66,144.19,144.15,20.17]
[1718440913392,4.66,144.19,144.15,20.17]
[1718440913582,2.5655,144.22,144.14,16.4138]
[1718440913583,5.66,144.18,144.14,16.4138]
[1718440913774,5.66,144.17,144.14,16.4138]
[1718440916815,5.66,144.18,144.14,16.4138]
[1718440917199,7.6968,144.22,144.14,16.4138]
[1718440917373,5.66,144.18,144.14,16.4138]
[1718440921702,7.6968,144.22,144.14,16.4138]
[1718440921914,5.66,144.18,144.14,16.4138]
[1718440922592,7.6968,144.22,144.14,16.4138]
[1718440922795,2.5654,144.23,144.14,16.4138]
[1718440922994,5.66,144.2,144.15,0.17]
[1718440926498,2.5655,144.22,144.15,0.17]
[1718440926698,24.0883,144.24,144.15,6.34]
[1718440926915,5.66,144.21,144.15,6.34]
[1718440929803,5.66,144.21,144.15,6.17]
[1718440930005,17.959,144.22,144.14,16.4138]
[1718440930187,5.66,144.18,144.14,16.4138]
[1718440930381,5.66,144.19,144.14,16.4138]
[1718440931479,25.656,144.22,144.14,16.4138]
[1718440931681,5.66,144.19,144.14,16.4138]
[1718440932798,2.5657,144.21,144.14,16.4138]
[1718440933102,5.66,144.19,144.14,16.4138]
[1718440933780,23.0886,144.23,144.14,16.4138]
[1718440933983,5.66,144.21,144.15,6.0]
[1718440934891,5.66,144.2,144.15,0.34]
[1718440936409,5.66,144.19,144.14,16.4138]
[1718440938806,5.66,144.18,144.14,16.4138]
[1718440940689,5.66,144.19,144.14,16.4138]
[1718440942814,5.66,144.2,144.14,16.4138]
[1718440945112,5.66,144.19,144.14,16.4138]
[1718440949014,25.6541,144.23,144.14,22.0738]
[1718440949214,5.66,144.2,144.15,20.51]
[1718440950020,5.66,144.21,144.15,26.17]
[1718440951014,5.66,144.2,144.15,20.51]
[1718440958131,5.66,144.19,144.15,20.0]
[1718440958298,5.66,144.19,144.14,16.4138]
[1718440958299,5.66,144.18,144.14,16.4138]
[1718440959733,5.66,144.19,144.14,16.4138]
[1718440960131,2.5666,144.16,144.11,8.58581796]
[1718440960426,2.5666,144.16,144.08,21.69219902]
[1718440960427,5.66,144.12,144.08,6.5908]
[1718440960602,5.66,144.11,144.08,6.5908]
[1718440963107,5.66,144.1,144.08,6.5908]
[1718440963712,7.7032,144.1,143.99,135.9584]
[1718440963909,29.1282,144.13,144.01,100.0]
[1718440964105,5.66,144.08,144.01,100.0]
[1718440964630,5.66,144.08,144.02,5.66]
[1718440965129,5.66,144.08,144.03,20.0]
[1718440965337,5.66,144.08,144.02,20.0]
[1718440966428,5.66,144.08,144.03,0.51]
[1718440966826,5.66,144.07,144.03,0.51]
[1718440967030,5.66,144.07,144.03,0.34]
[1718440967223,5.66,144.06,144.03,0.34]
[1718440968046,5.66,144.07,144.02,20.51]
[1718440969411,2.5675,144.11,144.02,20.51]
[1718440969642,5.66,144.07,144.02,20.51]
[1718440970733,5.66,144.06,144.02,0.51]
[1718440970933,5.66,144.07,144.02,20.51]
[1718440973153,2.5675,144.11,144.02,20.51]
[1718440973443,5.66,144.07,144.02,20.51]
[1718440976044,13.69952995,144.13,144.03,0.17]
[1718440976254,29.11093021,144.15,144.03,0.17]
[1718440976255,5.66,144.11,144.05,21.0964]
[1718440976555,5.66,144.11,144.06,0.51]
[1718440977820,5.16,144.11,144.06,0.51]
[1718440980325,5.66,144.1,144.06,0.51]
[1718440981830,2.5673,144.12,144.06,0.51]
[1718440982034,5.66,144.1,144.06,0.51]
[1718440982767,2.5673,144.12,144.06,0.51]